Cogmind - Beta 12 X6 @@@ ROGUE MODE // 2023.02.18 @ 17:48:57 // AFD2019/Pay2Buy Player: ArabianSandBoa Result: Self-destructed Performance ------------- Evolutions (5) 2500 Regions Visited (13) 2600 Robots Destroyed (171) 855 Value Destroyed (8564) 8564 Prototype IDs (13) 260 Alien Tech Used (0) 0 Bonus (3944) 3944 TOTAL SCORE: 18723 Bonus ------- Triggered High Security 1000 High Alert Combat Kills 2280 Follower Combat Kills 379 Aligned with FarCom 300 Met Imprinter 300 Friendly Fire -315 Cogmind --------- Core Integrity 195/1000 Matter 300/300 Energy 600/600 System Corruption 3% Temperature Cool (0) Movement Core (50) Location -5/Extension Parts ------- > --- POWER (2) -------- (None) > --- PROPULSION (4) --- (None) > --- UTILITY (9) ------ Advanced Energy Well Advanced Terrain Scan Processor > --- WEAPON (2) ------- (None) > --- INVENTORY (10) --- Improved Trap Scanner Microactuators Actuator Array Advanced Corruption Screen Cooled Plasma Cannon Heavy Pick Peak State ------------ > --- POWER ------------ Light Angular Momentum Engine > --- PROPULSION ------- Improved Cesium-ion Thruster > --- UTILITY ---------- Experimental Signal Interpreter Makeshift Terrain Scanner Advanced Terrain Scan Processor Improved Melee Analysis Suite Advanced Melee Analysis Suite Microactuators Advanced Corruption Screen Advanced Corruption Screen Advanced Corruption Screen > --- WEAPON ----------- Cooled Pulse Rifle CR-A16's Pointy Stick > --- INVENTORY -------- Improved Deuterium Engine Improved Trap Scanner Actuator Array Hardened Light Armor Plating Advanced Corruption Screen Cooled Pulse Rifle Cooled Pulse Rifle Heavy Missile Launcher [Rating: 78] Favorites ----------- Power Cold Fusion Reactor Engine Makeshift Power Source Power Core Light Neutrino Core Reactor Cold Fusion Reactor Propulsion Improved Cesium-ion Thruster Wheel Armored Huge Wheel Hover Unit Cooled Airjet Flight Unit Improved Cesium-ion Thruster Utility Improved Melee Analysis Suite Device Microactuators Storage Advanced Energy Well Processor Improved Melee Analysis Suite Hackware Makeshift Hacking Suite Protection Hardened Light Armor Plating Weapon Makeshift Sword Energy Gun Cooled Pulse Rifle Energy Cannon Cooled Plasma Cannon Ballistic Cannon Battle Cannon Launcher Mini Grenade Launcher Impact Weapon Maul Slashing Weapon Makeshift Sword Piercing Weapon CR-A16's Pointy Stick Build | -11 -10 -10 -10 -9 -8 -7 -7 -7 -7 -6 -6 -5 -5 ------- Run | Jun Mat Min Exi Min Mat Fac Low Low Zio Pro Fac Fac Ext Slots Evolved 10 | . . . . . 4 2 . . . . 2 2 . Power 1 | . . . . . . . . . . . . 1 . Propulsion 2 | . . . . . . 1 . . . . 1 . . Utility 7 | . . . . . 4 1 . . . . 1 1 . Weapon . | . . . . . . . . . . . . . . Parts Attached 89 | . . 1 . 3 9 21 2 . 2 1 28 13 9 Power 2 | . . . . . . 1 . . . . . . 1 Engine 2 | . . . . . . 1 . . . . . . 1 Core . | . . . . . . . . . . . . . . Reactor . | . . . . . . . . . . . . . . Propulsion 12 | . . . . . . 4 1 . . . 7 . . Treads . | . . . . . . . . . . . . . . Leg . | . . . . . . . . . . . . . . Wheel 2 | . . . . . . . 1 . . . 1 . . Hover 4 | . . . . . . . . . . . 4 . . Flight 6 | . . . . . . 4 . . . . 2 . . Utility 19 | . . 1 . . 5 4 1 . 1 1 2 3 1 Device 12 | . . 1 . . 2 4 1 . 1 1 2 . . Storage . | . . . . . . . . . . . . . . Processor 5 | . . . . . 2 . . . . . . 3 . Hackware . | . . . . . . . . . . . . . . Protection 2 | . . . . . 1 . . . . . . . 1 Artifact . | . . . . . . . . . . . . . . Weapon 56 | . . . . 3 4 12 . . 1 . 19 10 7 Energy Gun 11 | . . . . . . . . . . . 3 4 4 Energy Cannon 1 | . . . . . . . . . . . . . 1 Ballistic Gun . | . . . . . . . . . . . . . . Ballistic Cannon 1 | . . . . . . 1 . . . . . . . Launcher 19 | . . . . 1 1 5 . . . . 6 5 1 Special Weapon . | . . . . . . . . . . . . . . Impact Weapon . | . . . . . . . . . . . . . . Slashing Weapon 17 | . . . . . 3 6 . . . . 8 . . Piercing Weapon 7 | . . . . 2 . . . . 1 . 2 1 1 Special Melee Weapon . | . . . . . . . . . . . . . . Unidentified Prototypes 1 | . . 1 . . . . . . . . . . . Parts Lost 55 | . . . . . 1 7 7 1 . 1 19 3 16 Power 9 | . . . . . . 2 1 . . . 4 . 2 Propulsion 15 | . . . . . 1 3 3 . . . 7 . 1 Utility 22 | . . . . . . 2 2 1 . 1 5 2 9 Weapon 9 | . . . . . . . 1 . . . 3 1 4 Highest Loss Streak 7 | . . . . . 1 2 7 1 . 1 3 2 5 To Critical Strikes . | . . . . . . . . . . . . . . Average Slot Usage (%) 77 | . 33 68 71 71 91 99 91 87 84 90 78 53 42 Engine 2 | . . . . . 8 5 3 . . . . 2 3 Reactor 1 | . . . . . . . 3 7 7 7 2 . . Wheel 2 | . . . . . 5 . 3 7 7 7 1 . . Hover 2 | . . . . . . . . . . . 14 . . Flight 9 | . 22 28 28 28 7 22 14 7 7 7 3 5 . Device 15 | . . 11 14 12 24 23 16 18 15 21 15 9 4 Processor 23 | . . . . 2 24 29 34 30 30 30 24 25 18 Protection 1 | . . 14 14 12 3 . . . . . 1 . . Energy Gun 1 | . . . . . . . . . . . 1 2 3 Launcher 1 | . . 12 14 10 . 3 . . . . . . . Slashing Weapon 6 | . . . . . 16 10 15 15 7 7 3 . . Piercing Weapon 2 | . . . . 3 . . . . 6 7 4 5 1 Naked Turns 11 | . 11 . . . . . . . . . . . . Heaviest Build 30 | . 3 8 7 8 22 24 22 22 21 22 30 19 29 Greatest Support 37 | 3 8 8 8 8 28 27 28 28 28 28 37 18 18 Greatest Overweight (x) 9 | . . . . . 1 . . . . . 2 3 9 Average Overweight (x) . | . . . . . . . . . . . . . 1 Largest Inventory Capacity 10 | 10 10 10 10 10 10 10 10 10 10 10 10 10 10 Average Capacity 10 | 10 10 10 10 10 10 10 10 10 10 10 10 10 10 Most Carried 10 | . 1 3 7 9 10 10 10 9 10 9 10 9 10 Average Carried 7 | . . 2 7 7 7 9 8 7 9 9 8 8 7 Final Capacity 10 | 10 10 10 10 10 10 10 10 10 10 10 10 10 10 Final Carried 10 | . 1 7 7 9 9 10 7 9 10 9 9 8 6 Class Distribution -------------------- 67% | Mutant 15% | Scout 14% | Sprinter Dominant Class ---------------- Sprinter | -10/Materials Sprinter | -10/Mines Sprinter | -10/Exiles Scout | -9/Mines Mutant | -8/Materials Scout | -7/Factory Mutant | -7/Lower Caves Mutant | -7/Lower Caves Mutant | -7/Zion Mutant | -6/Proximity Caves Mutant | -6/Factory Scout | -5/Factory Mutant | -5/Extension Resources | -11 -10 -10 -10 -9 -8 -7 -7 -7 -7 -6 -6 -5 -5 ----------- Run | Jun Mat Min Exi Min Mat Fac Low Low Zio Pro Fac Fac Ext Matter Collected 2358 | . . 3 . 454 163 696 91 10 10 20 533 147 231 Remotely . | . . . . . . . . . . . . . . Salvage Created 5625 | . 6 27 . 526 1296 890 383 137 . 179 901 253 1027 Parts . | . . . . . . . . . . . . . . Haulers Intercepted 3 | . . . . . 2 . . . . . 1 . . Recyclers Shooed . | . . . . . . . . . . . . . . Parts Field Recycled . | . . . . . . . . . . . . . . Retrieved Matter . | . . . . . . . . . . . . . . Parts Self-Destructed . | . . . . . . . . . . . . . . Prevented . | . . . . . . . . . . . . . . Kills | -11 -10 -10 -10 -9 -8 -7 -7 -7 -7 -6 -6 -5 -5 ------- Run | Jun Mat Min Exi Min Mat Fac Low Low Zio Pro Fac Fac Ext Combat Hostiles Destroyed 103 | . . 6 . 15 25 16 1 4 . 1 22 . 13 Melee 54 | . . . . 2 22 5 1 4 . 1 16 . 3 Guns 5 | . . . . . . . . . . . . . 5 Cannons 3 | . . . . . . . . . . . . . 3 AOE 40 | . . 6 . 13 3 11 . . . . 6 . 1 Classes Destroyed 20 | . . 1 . 9 4 2 1 . . 1 2 . . Worker 23 | . . . . 1 . 9 . . . . 9 4 . Builder 13 | . . . . 4 2 4 . . . . . 2 1 Tunneler 5 | . . . . 3 . 1 . . . . 1 . . Hauler 3 | . . . . . 2 . . . . . 1 . . Recycler 3 | . . . . 1 . 1 . . . . . 1 . Mechanic 4 | . . . . . . 1 . . . . 1 . 2 Operator 7 | . . . . . . 3 . . . . 1 2 1 Watcher 10 | . . . . . 3 5 . . . . 2 . . Swarmer 28 | . . 6 . . 3 3 . 2 . . 14 . . Saboteur 1 | . . . . . . . . . . . 1 . . Grunt 45 | . . . . 8 17 9 . 1 . . 2 . 8 Brawler 7 | . . . . 2 1 1 . . . . . . 3 Duelist 4 | . . . . 1 . 1 . 1 . . . . 1 Sentry 6 | . . . . . 3 1 . . . . 2 . . Demolisher 2 | . . . . 2 . . . . . . . . . Hunter 2 | . . . . . 1 1 . . . . . . . Programmer 3 | . . . . . . . . . . 1 2 . . Behemoth 2 | . . . . . . . 1 . . . 1 . . Assembled 2 | . . . . 2 . . . . . . . . . Thug 1 | . . . . . . . . . . . . . 1 Butcher 1 | . . . . . . . . . . . . . 1 Fireman 1 | . . . . . . . . . . . 1 . . Best Kill Streak 14 | . . 3 . 5 5 14 1 4 . 1 7 4 4 Combat Bots Only 6 | . . 3 . 4 4 6 1 4 . 1 6 . 4 Max Kills in Single Turn 3 | . . 2 . 3 3 3 1 1 . 1 3 3 2 Gunslinging . | . . . . . . . . . . . . . . Exploded 3 | . . 2 . 3 3 3 . . . . 2 . 1 Melee 1 | . . . . 1 1 1 1 1 . 1 1 . 1 Uniques/NPCs Destroyed . | . . . . . . . . . . . . . . Combat | -11 -10 -10 -10 -9 -8 -7 -7 -7 -7 -6 -6 -5 -5 -------- Run | Jun Mat Min Exi Min Mat Fac Low Low Zio Pro Fac Fac Ext Damage Taken 5901 | . . 14 . 112 465 478 325 303 . 226 2274 129 1575 Core 2253 | . . 6 . 83 157 86 151 137 . 119 709 31 774 Absorbed by Shields 74 | . . . . . . . . . . . . . 74 Redirected to Shielding 155 | . . . . . . . . . . . 155 . . Core Remaining (%) 56 | 100 . . . 64 71 . . . . 29 16 . . Volleys Fired 176 | . . 7 . 15 7 56 . . . . 41 15 35 Largest 2 | . . 1 . 1 1 1 . . . . 1 1 2 Hottest 165 | . . 30 . 30 30 39 . . . . 60 60 165 Shots Fired 203 | . . 7 . 15 7 56 . . . . 40 15 63 Gun 54 | . . . . . . . . . . . 12 7 35 Cannon 32 | . . . . . . 6 . . . . . . 26 Launcher 117 | . . 7 . 15 7 50 . . . . 28 8 2 Special . | . . . . . . . . . . . . . . Kinetic 6 | . . . . . . 6 . . . . . . . Thermal 80 | . . . . . . . . . . . 12 7 61 Explosive 117 | . . 7 . 15 7 50 . . . . 28 8 2 Electromagnetic . | . . . . . . . . . . . . . . Robot Hit Streak 11 | . . 1 . 4 1 10 . . . . 2 . 11 Robot Miss Streak 4 | . . 1 . 3 . 1 . . . . 4 . 2 Penetration Max . | . . . . . . . . . . . . . . Secondary Targets . | . . . . . . . . . . . . . . Shots Hit Robots 281 | . . 2 . 14 77 45 20 9 . 10 44 4 56 Core Hits 237 | . . 5 . 37 36 55 6 5 . 2 47 7 37 Critical Kills . | . . . . . . . . . . . . . . Critical Parts Destroyed . | . . . . . . . . . . . . . . Critical Strikes 8 | . . . . 2 . . . . . 1 4 . 1 Impale 8 | . . . . 2 . . . . . 1 4 . 1 Melee Attacks 584 | . 5 1 . 11 137 144 24 15 . 14 145 57 31 Impact 6 | . 5 1 . . . . . . . . . . . Slashing 384 | . . . . . 137 144 24 15 . 3 61 . . Piercing 194 | . . . . 11 . . . . . 11 84 57 31 Sneak Attacks 27 | . . . . 4 5 9 . . . . 5 2 2 Combat Hostiles 4 | . . . . . 2 . . . . . 2 . . Follow-up Attacks 28 | . . . . . 18 4 1 . . 2 3 . . Damage Inflicted 19902 | . . 400 . 2056 3397 4611 1170 372 . 524 3990 1061 2321 Guns 549 | . . . . . . . . . . . . . 549 Cannons 836 | . . . . . . . . . . . . . 836 Explosions 8053 | . . 400 . 1607 273 2684 . . . . 1931 804 354 Melee 10461 | . . . . 449 3124 1927 1170 372 . 524 2056 257 582 Ramming 3 | . . . . . . . . . . . 3 . . Kinetic . | . . . . . . . . . . . . . . Thermal 2547 | . . . . . . 392 . . . . 195 575 1385 Explosive 6891 | . . 400 . 1607 273 2292 . . . . 1736 229 354 Electromagnetic . | . . . . . . . . . . . . . . Impact . | . . . . . . . . . . . . . . Slashing 7775 | . . . . . 3124 1927 1170 372 . 91 1091 . . Piercing 2686 | . . . . 449 . . . . . 433 965 257 582 Highest Corruption 4 | . . . . . . . . . . . 4 . 3 Average Corruption 2 | . . . . . . . . . . . 2 . 3 Corruption Purged . | . . . . . . . . . . . . . . Corruption Blocked 17 | . . . . . . . . . . . . 4 13 Effects 25 | . . . . . . . . . . . 22 . 3 Message Errors 4 | . . . . . . . . . . . 4 . . Matter Fused 3 | . . . . . . . . . . . 3 . . Heat Flow Errors 2 | . . . . . . . . . . . 1 . 1 Energy Discharges 9 | . . . . . . . . . . . 8 . 1 Data Loss (minor) 5 | . . . . . . . . . . . 4 . 1 Alerts 1 | . . . . . . . . . . . 1 . . Weapon Failures 1 | . . . . . . . . . . . 1 . . Overload Shots 31 | . . . . . . . . . . . 12 6 13 Effects 2 | . . . . . . . . . . . 1 . 1 Energy Bleed 1 | . . . . . . . . . . . 1 . . Heat Surge 1 | . . . . . . . . . . . . . 1 Overflow Damage 1774 | . . 17 . 209 71 374 261 4 . 174 229 351 84 Projectiles . | . . . . . . . . . . . . . . Explosions 621 | . . 17 . 63 . 78 . . . . 118 319 26 Melee 1153 | . . . . 146 71 296 261 4 . 174 111 32 58 Knockbacks . | . . . . . . . . . . . . . . Impact . | . . . . . . . . . . . . . . Kinetic . | . . . . . . . . . . . . . . Secondary . | . . . . . . . . . . . . . . Self-Inflicted Damage 440 | . . 9 . . 22 124 . . . . 122 49 114 Shots 12 | . . 1 . . 1 4 . . . . 4 1 1 Rammed 1 | . . . . . . . . . . . 1 . . Targets Rammed 1 | . . . . . . . . . . . 1 . . Kicked . | . . . . . . . . . . . . . . Crushed . | . . . . . . . . . . . . . . Highest Temperature 283 | . . . . 3 4 5 . . . . 186 11 283 Average Temperature 76 | . . . . 2 3 2 . . . . 32 7 108 Received Heat Transfer 1056 | . . . . 38 135 117 24 18 . 24 297 21 382 Siege Activations . | . . . . . . . . . . . . . . Robots Corrupted . | . . . . . . . . . . . . . . Combat Hostiles . | . . . . . . . . . . . . . . Parts Fried . | . . . . . . . . . . . . . . Impact Corruptions . | . . . . . . . . . . . . . . Robots Melted 1 | . . . . . . . . . . . . . 1 Combat Hostiles 1 | . . . . . . . . . . . . . 1 Parts Melted . | . . . . . . . . . . . . . . Heat Transferred 2905 | . . . . . . 400 . . . . 150 350 2005 Parts Sabotaged 7 | . . . . . . . . . . . 7 . . Parts Stolen . | . . . . . . . . . . . . . . Parts Stripped . | . . . . . . . . . . . . . . Power Chain Reactions 1 | . . . . . . . . . . . 1 . . Missiles Intercepted . | . . . . . . . . . . . . . . Alert | -11 -10 -10 -10 -9 -8 -7 -7 -7 -7 -6 -6 -5 -5 ------- Run | Jun Mat Min Exi Min Mat Fac Low Low Zio Pro Fac Fac Ext Peak Influence 3900 | . 106 234 . 652 1401 3900 . . . . 3022 2992 1627 Initial 1475 | . . 40 . . 250 637 . . . . 21 1475 1465 Average 1312 | . 33 172 . 345 817 2067 . . . . 1482 2352 1472 Maximum Alert Level 5 | . . 1 . 2 4 5 . . . . 5 5 5 Low Security (%) 16 | 100 100 48 . 29 . . . . . . 6 . . Level 1 6 | . . 51 . 35 10 . . . . . 5 . . Level 2 6 | . . . . 34 25 6 . . . . 2 . . Level 3 11 | . . . . . 40 11 . . . . 19 . . Level 4 29 | . . . . . 23 24 . . . . 24 6 98 Level 5 18 | . . . . . . 29 . . . . 14 93 1 High Security 11 | . . . . . . 27 . . . . 27 . . Max Security . | . . . . . . . . . . . . . . Squads Dispatched 75 | . . . . 4 6 22 . 1 . . 29 9 4 Investigation 21 | . . . . . 6 8 . . . . 6 . 1 Extermination 3 | . . . . . . . . . . . 2 1 . Reinforcement 9 | . . . . 1 . . . . . . 3 4 1 Assault 39 | . . . . 3 . 11 . 1 . . 18 4 2 Garrison 3 | . . . . . . 3 . . . . . . . Intercept . | . . . . . . . . . . . . . . Searches Triggered . | . . . . . . . . . . . . . . Construction Impeded 3 | . . . . 1 . . . . . . 1 1 . Haulers Reinforced . | . . . . . . . . . . . . . . Active Scanning Responses . | . . . . . . . . . . . . . . Cargo Convoy Interrupts . | . . . . . . . . . . . . . . Stealth | -11 -10 -10 -10 -9 -8 -7 -7 -7 -7 -6 -6 -5 -5 --------- Run | Jun Mat Min Exi Min Mat Fac Low Low Zio Pro Fac Fac Ext Distress Signals 11 | . 1 . . . 1 1 . . . . 2 2 4 Communications Jammed . | . . . . . . . . . . . . . . Distress Signals . | . . . . . . . . . . . . . . Times Spotted 312 | . 8 6 . 32 33 55 1 14 . 2 110 24 27 Peak Tracking Total 30 | . 6 3 . 8 5 19 1 10 . 1 30 9 5 Tactical Retreats 45 | . 1 . . . 2 7 . 4 . . 18 9 4 Traps | -11 -10 -10 -10 -9 -8 -7 -7 -7 -7 -6 -6 -5 -5 ------- Run | Jun Mat Min Exi Min Mat Fac Low Low Zio Pro Fac Fac Ext Traps Triggered 10 | . . . . . 1 3 . . . . 5 . 1 Indirectly . | . . . . . . . . . . . . . . Trap Hack Attempts . | . . . . . . . . . . . . . . Triggered . | . . . . . . . . . . . . . . Disarmed . | . . . . . . . . . . . . . . Reprogrammed . | . . . . . . . . . . . . . . Reused . | . . . . . . . . . . . . . . Traps Extracted . | . . . . . . . . . . . . . . Installed . | . . . . . . . . . . . . . . Triggered . | . . . . . . . . . . . . . . Machines | -11 -10 -10 -10 -9 -8 -7 -7 -7 -7 -6 -6 -5 -5 ---------- Run | Jun Mat Min Exi Min Mat Fac Low Low Zio Pro Fac Fac Ext Machines Disabled 284 | . 4 . . . 17 119 . . . 1 79 54 10 Max in Single Turn 9 | . 1 . . . 2 8 . . . 1 9 8 1 Garrison Access 5 | . . . . . . 2 . . . . 2 1 . Energy Cycler 1 | . . . . . . . . . . . . . 1 Machines Repaired 8 | . . . . . 3 4 . . . . 1 . . Machines Sabotaged . | . . . . . . . . . . . . . . Overloaded Fab Kills . | . . . . . . . . . . . . . . Hacking | -11 -10 -10 -10 -9 -8 -7 -7 -7 -7 -6 -6 -5 -5 --------- Run | Jun Mat Min Exi Min Mat Fac Low Low Zio Pro Fac Fac Ext Machines Accessed 22 | . . . . . 5 8 . . . 1 5 . 3 Terminals 20 | . . . . . 4 8 . . . 1 4 . 3 Fabricators . | . . . . . . . . . . . . . . Repair Stations . | . . . . . . . . . . . . . . Recycling Units . | . . . . . . . . . . . . . . Scanalyzers 2 | . . . . . 1 . . . . . 1 . . Garrison Access . | . . . . . . . . . . . . . . Total Hacks 52 | . . . . . 5 24 . . . 1 13 . 9 Successful 21 | . . . . . 5 10 . . . 1 2 . 3 Failed 31 | . . . . . . 14 . . . . 11 . 6 Catastrophic 7 | . . . . . . 1 . . . . 4 . 2 Database Lockouts . | . . . . . . . . . . . . . . Manual 39 | . . . . . 5 19 . . . . 13 . 2 Terminals 50 | . . . . . 4 24 . . . 1 12 . 9 Fabricators . | . . . . . . . . . . . . . . Repair Stations . | . . . . . . . . . . . . . . Recycling Units . | . . . . . . . . . . . . . . Scanalyzers 2 | . . . . . 1 . . . . . 1 . . Garrison Access . | . . . . . . . . . . . . . . Terminal Hacks 7 | . . . . . . 3 . . . 1 . . 3 Record 1 | . . . . . . . . . . 1 . . . Robot Schematic 1 | . . . . . . 1 . . . . . . . Branch Access Points 1 | . . . . . . . . . . . . . 1 Alert Level 1 | . . . . . . . . . . . . . 1 Unreport Threat 3 | . . . . . . 2 . . . . . . 1 Fabricator Hacks . | . . . . . . . . . . . . . . Repair Station Hacks . | . . . . . . . . . . . . . . Recycling Unit Hacks . | . . . . . . . . . . . . . . Scanalyzer . | . . . . . . . . . . . . . . Garrison Access Hacks . | . . . . . . . . . . . . . . Unauthorized Hacks 14 | . . . . . 5 7 . . . . 2 . . Terminals 12 | . . . . . 4 7 . . . . 1 . . Sabotage 12 | . . . . . 4 7 . . . . 1 . . Fabricators . | . . . . . . . . . . . . . . Repair Stations . | . . . . . . . . . . . . . . Recycling Units . | . . . . . . . . . . . . . . Scanalyzers 2 | . . . . . 1 . . . . . 1 . . Extract 2 | . . . . . 1 . . . . . 1 . . Garrison Access . | . . . . . . . . . . . . . . Data Cores Recovered 5 | . . . . . . 3 . . . . 1 1 . Used 2 | . . . . . . 2 . . . . . . . Hacking Detections 11 | . . . . . . 5 . . . . 4 . 2 Full Trace Events 5 | . . . . . . 1 . . . . 3 . 1 Feedback Events 1 | . . . . . . . . . . . 1 . . Corruption 1 | . . . . . . . . . . . 1 . . Feedback Blocked . | . . . . . . . . . . . . . . Robot Schematics Acquired 1 | . . . . . . 1 . . . . . . . Robots Built . | . . . . . . . . . . . . . . Authchips . | . . . . . . . . . . . . . . Time . | . . . . . . . . . . . . . . Total Robot Build Rating . | . . . . . . . . . . . . . . Part Schematics Acquired 10 | . . . . . 9 . . . . . 1 . . Parts Built . | . . . . . . . . . . . . . . Authchips . | . . . . . . . . . . . . . . Time . | . . . . . . . . . . . . . . Total Part Build Rating . | . . . . . . . . . . . . . . Parts Repaired . | . . . . . . . . . . . . . . Time . | . . . . . . . . . . . . . . Parts Recycled . | . . . . . . . . . . . . . . Recycled Matter . | . . . . . . . . . . . . . . Retrieved Matter . | . . . . . . . . . . . . . . Retrieved Components . | . . . . . . . . . . . . . . Parts Scanalyzed . | . . . . . . . . . . . . . . Part Schematics Acquired . | . . . . . . . . . . . . . . Parts Damaged . | . . . . . . . . . . . . . . Bothacking | -11 -10 -10 -10 -9 -8 -7 -7 -7 -7 -6 -6 -5 -5 ------------ Run | Jun Mat Min Exi Min Mat Fac Low Low Zio Pro Fac Fac Ext Used RIF Installer . | . . . . . . . . . . . . . . Robots Hacked . | . . . . . . . . . . . . . . Non-combat . | . . . . . . . . . . . . . . Combat . | . . . . . . . . . . . . . . Robot Hacks Applied . | . . . . . . . . . . . . . . Relay Couplers Released 5 | . . . . . . 2 . . . . 1 2 . Machine Destruction 5 | . . . . . . 2 . . . . 1 2 . Fabnet Peak Effective % . | . . . . . . . . . . . . . . Robots Rewired 2 | . . . . . . . . . . . . . 2 Allies Hacked . | . . . . . . . . . . . . . . Hacks Repelled . | . . . . . . . . . . . . . . Allies | -11 -10 -10 -10 -9 -8 -7 -7 -7 -7 -6 -6 -5 -5 -------- Run | Jun Mat Min Exi Min Mat Fac Low Low Zio Pro Fac Fac Ext Total Allies 9 | . . 3 . 1 . . . . 2 . . . 3 Largest Group 4 | . . 3 3 4 . . . . 2 2 2 . 2 Highest-Rated Group 71 | . . 40 40 71 . . . . 53 53 53 . 52 Highest-Rated Ally 31 | . . 16 16 31 . . . . 28 28 28 . 31 Total Orders . | . . . . . . . . . . . . . . Ally Attacks 78 | . . . . 59 . . . . . 4 7 . 8 Total Damage 1011 | . . . . 589 . . . . . 96 221 . 105 Kills 14 | . . . . 10 . . . . . 1 3 . . Allies Corrupted . | . . . . . . . . . . . . . . Allies Melted . | . . . . . . . . . . . . . . Intel | -11 -10 -10 -10 -9 -8 -7 -7 -7 -7 -6 -6 -5 -5 ------- Run | Jun Mat Min Exi Min Mat Fac Low Low Zio Pro Fac Fac Ext Robot Analysis Total . | . . . . . . . . . . . . . . Derelict Logs Recovered . | . . . . . . . . . . . . . . Drone Launches . | . . . . . . . . . . . . . . Drone Recoveries . | . . . . . . . . . . . . . . Exploration | -11 -10 -10 -10 -9 -8 -7 -7 -7 -7 -6 -6 -5 -5 ------------- Run | Jun Mat Min Exi Min Mat Fac Low Low Zio Pro Fac Fac Ext Turns Passed 8462 | 709 50 214 153 315 797 1090 277 238 868 515 1533 656 1047 Spaces Moved 8818 | 19 94 425 157 224 611 1743 323 203 839 475 2163 1146 396 Core 400 | 19 21 . . . . . . . . . 12 5 343 Treads . | . . . . . . . . . . . . . . Legs . | . . . . . . . . . . . . . . Wheels 2147 | . . . . . 265 . 108 203 839 475 257 . . Hover 1283 | . . . . . . . . . . . 1283 . . Flight 4988 | . 73 425 157 224 346 1743 215 . . . 611 1141 53 Fastest Speed 23 | 50 32 32 32 32 32 23 32 100 100 100 32 35 35 Average Speed 54 | 50 36 32 32 32 64 33 56 100 100 100 45 35 105 Slowest Speed 500 | 50 50 32 32 32 115 35 100 100 100 100 150 230 500 Overloaded Moves 7 | . . . . . . 7 . . . . . . . Propulsion Burnouts . | . . . . . . . . . . . . . . Robots Hopped 9 | . . 1 . 1 . 2 1 . . . 1 2 1 Cave-ins Triggered 1 | . . . . . . . . . . . . 1 . Exploration Rate (%) 50 | 7 40 85 55 37 55 60 51 44 81 72 60 31 26 Regions Visited 13 Branch Regions 8 Pre-discovered Areas 4 | . . 1 . . . . . . 3 . . . . Known Exits Taken 2 | . . . . . . 1 . . . . . 1 . Unknown Exits Taken 11 | 1 1 1 1 1 1 . 1 1 1 1 1 . . Scrap Searched . | . . . . . . . . . . . . . . Spaces Dug 124 | . 1 1 . . 15 37 . . . . 46 22 2 Terrain Destroyed 1643 | . 1 79 . 120 107 563 . . . . 471 246 56 Melee 116 | . 1 1 . . 15 29 . . . . 46 22 2 Projectile 14 | . . . . . . . . . . . 3 1 10 AOE 1513 | . . 78 . 120 92 534 . . . . 422 223 44 Terrain Rammed . | . . . . . . . . . . . . . . Walls Destroyed . | . . . . . . . . . . . . . . Machines Disabled . | . . . . . . . . . . . . . . Actions | -11 -10 -10 -10 -9 -8 -7 -7 -7 -7 -6 -6 -5 -5 --------- Run | Jun Mat Min Exi Min Mat Fac Low Low Zio Pro Fac Fac Ext Total 11724 | 717 99 493 259 434 986 2121 402 224 867 498 2453 1274 897 Wait 2027 | 699 . 57 103 174 241 144 59 7 25 12 66 36 404 Move 8787 | 18 93 422 156 221 610 1738 320 202 838 474 2161 1140 394 Hop 9 | . . 1 . 1 . 2 1 . . . 1 2 1 Pick Up 10 | . . 2 . 3 1 . . . 1 . 2 1 . Fast Attach 10 | . . . . . . 3 . . . . 3 3 1 Attach 42 | . . 1 . 1 6 4 2 . 1 1 11 9 6 Detach 45 | . 1 2 . 3 9 8 . . 1 . 8 9 4 Swap 37 | . . . . 2 3 14 . . 1 . 14 1 2 Drop 14 | . . . . 3 3 4 . 1 . . 2 . 1 Fire 176 | . . 7 . 15 7 56 . . . . 41 15 35 Melee 518 | . 5 1 . 11 106 126 20 14 . 11 136 57 31 Ram . | . . . . . . . . . . . . . . Kick . | . . . . . . . . . . . . . . Crush . | . . . . . . . . . . . . . . Escape Stasis 35 | . . . . . . 22 . . . . 8 1 4 Rewire 14 | . . . . . . . . . . . . . 14 Trap . | . . . . . . . . . . . . . . Miscellaneous . | . . . . . . . . . . . . . . Route ------- -11/Junkyard -10/Materials (discovered 2 exits: [*Min x2]) -10/Mines (discovered 3 exits: [*Mat x2] / [*Exi]) -10/Exiles -9/Mines (discovered 2 exits: *Mat x2) -8/Materials -7/Factory (discovered 3 exits: *Fac / [*Sto] / *Low) -7/Lower Caves -7/Lower Caves (discovered 2 exits: *Fac / [*Zio]) -7/Zion -6/Proximity Caves -6/Factory (discovered 2 exits: [*Fac] / [*Low]) -5/Factory -5/Extension (discovered 1 exit: Cet) History --------- Turn | Location | Event 703 | -11/Junkyard | Discovered new exit (range 13) 710 | -11/Junkyard | Entered Materials 711 | -10/Materials | Build established: Mutant 749 | -10/Materials | Discovered new exit (range 11) 750 | -10/Materials | Discovered new exit (range 10) 760 | -10/Materials | Entered Mines 805 | -10/Mines | Discovered new exit (range 10) 806 | -10/Mines | Found a damaged Exp. Sensor Array with a note attached 806 | -10/Mines | Found Prototype Device 807 | -10/Mines | Identified Exp. Sensor Array 812 | -10/Mines | Assisted by bots powering up and referring to "LRC-V3" 822 | -10/Mines | Discovered new exit (range 13) 853 | -10/Mines | Learned location of Storage (-7) 874 | -10/Mines | A weapon hastily lodged in a ceiling crevice suddenly fell to the ground 928 | -10/Mines | Deemed a non-threat by the Exiles lab entrance 928 | -10/Mines | Discovered new exit (range 5) 974 | -10/Mines | Entered Exiles 974 | -10/Exiles | Accompanied by 3 allies 982 | -10/Exiles | Met 8R-AWN 988 | -10/Exiles | Met EX-HEX 997 | -10/Exiles | Met EX-BIN 1001 | -10/Exiles | Aligned with FarCom system 1001 | -10/Exiles | Given EX-Vault access code 1010 | -10/Exiles | Met EX-DEC 1014 | -10/Exiles | Build established: Sprinter 1021 | -10/Exiles | Discovered new exit (range 12) 1127 | -10/Exiles | Entered Mines 1127 | -9/Mines | Accompanied by 3 allies 1163 | -9/Mines | Discovered new exit (range 15) 1174 | -9/Mines | Met a Derelict testing a Signal Generator 1176 | -9/Mines | Found Signal Generator 1394 | -9/Mines | Discovered new exit (range 10) 1409 | -9/Mines | Assembled infested the area 1414 | -9/Mines | Assisted by a Guerilla fighting off Assembled 1442 | -9/Mines | Entered Materials 1442 | -8/Materials | Evolved 4 slots: Utility x4 2062 | -8/Materials | Build established: Mutant 2214 | -8/Materials | Discovered new exit (range 15) 2239 | -8/Materials | Entered Factory 2239 | -7/Factory | Evolved 2 slots: Propulsion x1, Utility x1 2639 | -7/Factory | First assault squad dispatched 2840 | -7/Factory | Build established: Scout 3029 | -7/Factory | High security lockdown imminent 3032 | -7/Factory | Garrison activated, responded to threat 3109 | -7/Factory | High security lockdown engaged 3247 | -7/Factory | Discovered new exit (range 15) 3291 | -7/Factory | Discovered new exit (range 15) 3325 | -7/Factory | Discovered new exit (range 6) 3329 | -7/Factory | Identified exit to Lower Caves 3329 | -7/Factory | Entered Lower Caves 3373 | -7/Lower Caves | Encountered a Warlord checkpoint 3427 | -7/Lower Caves | Spotted B-75 Beast 3471 | -7/Lower Caves | Destroyed B-75 Beast 3499 | -7/Lower Caves | Lost 7 parts (1p3n2u1w) 3574 | -7/Lower Caves | Discovered new exit (range 5) 3606 | -7/Lower Caves | Entered another Lower Caves area 3638 | -7/Lower Caves | Discovered new exit (range 5) 3677 | -7/Lower Caves | Attracted the attention of an 0b10 outpost 3705 | -7/Lower Caves | Core integrity fell below 50% 3779 | -7/Lower Caves | Build established: Mutant 3833 | -7/Lower Caves | Discovered new exit (range 12) 3844 | -7/Lower Caves | Entered Zion 3871 | -7/Zion | Found CR-A16's Pointy Stick 3898 | -7/Zion | Given A8's code to call for help 3915 | -7/Zion | Discovered new exit (range 15) 4137 | -7/Zion | Learned location of Warlord (-4) 4181 | -7/Zion | Gained Derelict followers 4307 | -7/Zion | Learned location of Armory (-4) 4314 | -7/Zion | Given the Hacking Drone Bay 4337 | -7/Zion | Learned location of Quarantine (-2) 4484 | -7/Zion | Rebuked by Imprinter 4712 | -7/Zion | Entered Proximity Caves 4712 | -6/Proximity Caves | Accompanied by 2 allies 5066 | -6/Proximity Caves | Spotted B-75 Beast 5145 | -6/Proximity Caves | Allies destroyed B-75 Beast 5219 | -6/Proximity Caves | Discovered new exit (range 7) 5227 | -6/Proximity Caves | Entered Factory 5227 | -6/Factory | Accompanied by 2 allies 5227 | -6/Factory | Evolved 2 slots: Propulsion x1, Utility x1 5927 | -6/Factory | First assault squad dispatched 6344 | -6/Factory | High security lockdown imminent 6357 | -6/Factory | Spotted B-75 Beast 6372 | -6/Factory | Destroyed B-75 Beast 6424 | -6/Factory | High security lockdown engaged 6622 | -6/Factory | Core integrity fell below 50% 6658 | -6/Factory | Lost 3 parts (2n1u) 6756 | -6/Factory | Discovered new exit (range 2) 6759 | -6/Factory | Discovered new exit (range 15) 6760 | -6/Factory | Entered another Factory area 6760 | -5/Factory | Evolved 2 slots: Power x1, Utility x1 6983 | -5/Factory | Discovered new exit (range 13) 6990 | -5/Factory | Identified exit to Extension 7060 | -5/Factory | First assault squad dispatched 7084 | -5/Factory | Crushed by falling debris 7257 | -5/Factory | Build established: Scout 7416 | -5/Factory | Entered Extension 7427 | -5/Extension | Disrupted transfer network 7452 | -5/Extension | Rescued a captive Derelict 7542 | -5/Extension | Identified exit to Cetus 7545 | -5/Extension | Lost 4 parts (1p1n1u1w) 7546 | -5/Extension | Energy Cycler disabled 7548 | -5/Extension | Rescued a captive Derelict 7549 | -5/Extension | Rescued a captive Derelict 7716 | -5/Extension | First assault squad dispatched 7849 | -5/Extension | Build established: Mutant 8257 | -5/Extension | Lost 5 parts (4u1w) 8423 | -5/Extension | Core integrity fell below 50% 8449 | -5/Extension | Core integrity fell below 20% 8463 | -5/Extension | Self-destructed Last Messages --------------- 08428_ M-28 Smith repairs 21-8VC(g). 08429_ Attempting to rewire VP-NKV(g). 08429_ Slug penetrates IJ-8Z2(l). 08429_ IJ-8Z2(l) suffers critical hit (Destroy). 08430_ Attempting to rewire VP-NKV(g). 08431_ Critical hit (Burn: +37). 08432_ Slug penetrates IJ-8Z2(l). 08432_ M-28 Smith repairs 21-8VC(g). 08433_ Attempting to rewire LE-AWI(g). 08434_ LE-AWI(g) rewired. 08437_ Slug penetrates Wall. 08438_ Slug penetrates IJ-8Z2(l). 08442_ IJ-8Z2(l) destroyed. 08443_ Slug penetrates Wall. 08444_ 21-8VC(g) destroyed. 08444_ M-28 Smith destroyed. 08445_ Hvy. Missile Launcher destroyed. 08445_ Penetrated by Slug. 08446_ Acquired 10 matter. 08450_ Acquired 23 matter. Map ----- +----------------------------------------------------+ | | | | | ?###?###?######?#######????#??? | | ?##########?####?######???????? | | ??######################## #### | | #?#########?########### | | ##?############### | | ################## | | ########### # ^ % | | ########### # % % % | | ?######### ## | | ###### ### # # | | ###### ### # ###? | | ###### #### h ### | | ###### ###### Y ### | | #?####% % g ####?# | | ###### % ###### | | ###?##%#######+##### "# ### | | ###### ### ^ #"Y"# | | ###### ### " #"""##### | | ###### ### ############ | | ######%### ######??#### | | ###?## # ##""T" #####?########? | | ?#####%####"""""#########?#?#?# | | ######%###################?###? | | ######@##?##################?#? | | ######%####?###########??###### | | ####?#u###?########?#########?? | | ###?## #####?############?##??? | | ###### ##########?########?#??# | | ###### #################?##???? | | ?##### #####?#############????? | | ??####%##?###############?????? | | ##??##%#######?###?####???????? | | ?#####%#############?#????????? | | ###### #############??????????? | | ?##### #####?##??#####????????? | | ## ""%"" #??###?##??????????? | | ## %" #################### | | ## | | ?# | | ## | | ## | | ## | | ## #################### | | ## ##??#???#??#???????? | | #### "####??#??????????????? | | ??##" "##?#????#????????????? | | ???#"""""#???????#????????????? | | #??#######?#?#??????#?????????? | +----------------------------------------------------+ Best States ------------- Heat Dissipation 40 Energy Generation 19 Energy Capacity 790 Matter Stores 300 Matter Capacity 300 Sight Range 16 Robot Scan Range 20 Terrain Scan Range 20 Terrain Scan Density 210 Additional Mass Support 12 Corruption Block 60 Armor Coverage 150 Propulsion Shielding 90 Melee Speed Boost 40 Phase Shifting 5 Evasion (%) 79 Targeting Accuracy 24 Melee Accuracy 20 Armor Integrity Analysis 30 Particle Charging 20 Salvage Targeting 1 Offensive Hacking 11 Item Schematics ----------------- Imp. Propulsion Shielding | -8/Materials | Extracted Hvy. Mace | -8/Materials | Extracted Particle Charger | -8/Materials | Extracted Hcp. Matter Pod | -8/Materials | Extracted Pulse Rifle | -8/Materials | Extracted Imp. Aluminum Leg | -8/Materials | Extracted Lgt. Deuterium Engine | -8/Materials | Extracted Cargo Storage Unit | -8/Materials | Extracted Aerolev Unit | -8/Materials | Extracted EM Disruption Field | -6/Factory | Extracted Robot Schematics ------------------ S-27 Virus | -7/Factory | Hacked Fabricated ------------ Nothing Alien Tech Used ----------------- None Achievements -------------- None Challenges ------------ None Cogshop Purchases (74) ------------------------ VTOL Module (1021) VTOL Module (1021) Maul (602) Hvy. Assault Rifle (699) Hrd. Light Armor Plating (650) Mni. Grenade Launcher (1000) Adv. Targeting Computer (Loot Box) Salvage Targeting Computer (Loot Box) Spear (Loot Box) Lgt. Assault Rifle (Loot Box) Adv. Targeting Computer (689) Adv. Targeting Computer (689) Mak. Sword (1346) Mak. Sword (1346) Microactuators (741) Microactuators (741) Mak. Power Source (875) Imp. Melee Analysis Suite (944) Adv. Weight Redist. System (769) Imp. Melee Analysis Suite (1015) Actuator Array (882) Com. Wheel (577) Imp. Melee Analysis Suite (1040) Arm. Huge Wheel (963) Cld. Cesium-ion Thruster (1602) Adv. Terrain Scanner (1393) Adv. Terrain Scan Processor (1055) Adv. Melee Analysis Suite (1333) Mak. Flight Unit (1652) Imp. Cesium-ion Thruster (1989) Lgt. Fission Core (992) Imp. Trap Scanner (1430) Lgt. Angular Momentum Engine (1256) Hvy. Missile Launcher (1405) Cld. Cesium-ion Thruster (3076) Imp. Reaction Control System (1626) Phase Shifter (1626) Armor Integrity Analyzer (1592) Adv. Signal Interpreter (1725) Cld. Cesium-ion Thruster (3201) Power Sword (1407) Microactuators (1590) Cold Fusion Reactor (1282) Cld. Pulse Rifle (341) Cld. Pulse Rifle (341) Cld. Pulse Rifle (341) Nuclear Pulse Thruster (2417) Nuclear Pulse Thruster (2417) Adv. Weight Redist. System (1243) Cld. Airjet (1007) Cld. Airjet (1007) Cld. Airjet (1007) Cld. Airjet (1007) Lgt. Neutrino Core (910) Lgt. Neutrino Core (973) Imp. Reaction Control System (1606) Exp. Propulsion Shielding (2024) Microactuators (1502) Cld. Airjet (1690) Imp. Deuterium Engine (836) Mak. Sword (998) Imp. Deuterium Engine (929) Exp. Signal Interpreter (1056) Adv. Terrain Scan Processor (791) Terrain Scan Processor (778) Mak. Terrain Scanner (1866) Lgt. Angular Momentum Engine (1320) Gravity Neutralizer (1563) Cld. Plasma Cannon (770) Adv. Reaction Control System (1720) Hvy. Pick (1115) Mak. Hacking Suite (829) Imp. Particle Charger (1502) Adv. Energy Well (806) Game ------ Seed CoilPointNukerbomber Manual? 0 Play Time 01:56:04 Cumulative 338.8 hours Start 2023.02.18 @ 15:57:21 End 2023.02.18 @ 17:48:57 Sessions 1 Manual Loads 0 Difficulty Rogue Special Mode AFD2019/Pay2Buy Game No. 406 Rogue 406 Adventurer 0 Explorer 0 Win Type - Total 0 Types 0/0/0/0/0/0/0/0/0 Lore% 49 Gallery% 72 Achievement% 60 Wizard Run 0 Options --------- ASCII 0 Keyboard 0 Movement Mouse Keybinds 0 Fullscreen 2 Font 24/Smallcaps Map View 76x50 Tactical HUD 1 Map Filters NONE Filters NONE Steam 1 RUN: 963f6c8a-3bd6-4ce6-8a90-4edb87bc8d16